Cogmind - Beta 15 @@@ ROGUE MODE // 2025.09.07 @ 17:15:31 Player: potator Result: Destroyed by S-10 Pest with Light Assault Rifle Performance ------------- Evolutions (2) 1000 Regions Visited (5) 1000 Robots Destroyed (59) 295 Value Destroyed (1457) 1457 Prototype IDs (1) 20 Alien Tech Used (0) 0 Bonus (200) 200 TOTAL SCORE: 3972 Bonus ------- Entered Garrisons 200 Cogmind --------- Core Integrity 0/550 Matter 273/300 Energy 100/100 System Corruption 1% Temperature Cool (0) Movement Core (50) Location -8/Garrison Parts ------- > --- POWER (1) -------- (None) > --- PROPULSION (2) --- (None) > --- UTILITY (5) ------ (None) > --- WEAPON (3) ------- (None) > --- INVENTORY (5) ---- Improved Sensor Array Drone Bay (0/2) Drone Bay (0/2) Peak State ------------ > --- POWER ------------ Nuclear Core > --- PROPULSION ------- Light Treads Improved Treads > --- UTILITY ---------- Small Storage Unit Drone Bay Drone Bay Drone Bay Drone Bay > --- WEAPON ----------- Ion Cannon Heavy Assault Rifle > --- INVENTORY -------- Nuclear Core Structural Scanner Trap Scanner Advanced Targeting Computer ECM Suite Rocket Launcher Missile Launcher Great Maul [Rating: 33] Favorites ----------- Power Nuclear Core Engine Ion Engine Power Core Nuclear Core Propulsion Light Treads Treads Light Treads Leg Aluminum Leg Utility Small Storage Unit Device Structural Scanner Storage Small Storage Unit Weapon Heavy Assault Rifle Energy Gun Beam Rifle Energy Cannon Beam Cannon Ballistic Gun Heavy Assault Rifle Launcher Missile Launcher Build | -11 -10 -9 -8 -8 -8 ------- Run | Yrd Mat Mat Mat Sto Gar Slots Evolved 4 | . . 2 2 . . Power . | . . . . . . Propulsion . | . . . . . . Utility 3 | . . 2 1 . . Weapon 1 | . . . 1 . . Parts Attached 46 | 6 9 11 7 10 3 Power 5 | 1 1 2 1 . . Engine 4 | 1 1 2 . . . Core 1 | . . . 1 . . Reactor . | . . . . . . Propulsion 13 | 2 5 2 2 . 2 Treads 11 | 2 5 2 2 . . Leg 2 | . . . . . 2 Wheel . | . . . . . . Hover . | . . . . . . Flight . | . . . . . . Utility 17 | 1 1 4 2 9 . Device 16 | . 1 4 2 9 . Storage 1 | 1 . . . . . Processor . | . . . . . . Hackware . | . . . . . . Protection . | . . . . . . Artifact . | . . . . . . Weapon 11 | 2 2 3 2 1 1 Energy Gun 1 | . . . . 1 . Energy Cannon 2 | . 1 . 1 . . Ballistic Gun 7 | 2 1 3 1 . . Ballistic Cannon . | . . . . . . Launcher 1 | . . . . . 1 Special Weapon . | . . . . . . Impact Weapon . | . . . . . . Slashing Weapon . | . . . . . . Piercing Weapon . | . . . . . . Special Melee Weapon . | . . . . . . Unidentified Prototypes 1 | . . 1 . . . Parts Lost 20 | . . . 5 3 12 Power 1 | . . . . . 1 Propulsion 5 | . . . 1 . 4 Utility 9 | . . . 2 2 5 Weapon 5 | . . . 2 1 2 Highest Loss Streak 8 | . . . 1 2 8 To Critical Strikes . | . . . . . . Average Backups 6 | 3 5 7 6 7 3 Power . | . 1 1 1 . . Propulsion 1 | 1 1 2 1 . . Utility 2 | . 1 2 3 4 3 Weapon 1 | 1 1 1 1 2 . Tool/Special . | . . . . . . Unused Backups 10 | . 1 2 2 5 . Power 3 | . . 1 1 1 . Propulsion 1 | . 1 . . . . Utility 3 | . . . 1 2 . Weapon 3 | . . 1 . 2 . Tool/Special . | . . . . . . Average Slot Usage (%) 89 | . 92 99 92 79 44 Engine 8 | . 14 11 3 . . Core 2 | . . . 5 9 1 Treads 21 | . 28 22 17 18 7 Device 22 | . 6 32 32 33 17 Storage 10 | . 14 11 9 6 . Energy Cannon 8 | . 8 10 7 9 3 Ballistic Gun 14 | . 19 11 16 2 . Peak Build Rating 33 | 6 7 15 22 33 27 Average Rating 12 | 1 6 11 18 25 10 On Entrance 11 | . 6 7 15 18 21 Naked Turns 9 | . . . . . 9 Heaviest Build 45 | 10 15 23 30 45 33 Greatest Support 43 | 40 40 40 43 43 43 Greatest Overweight (x) 2 | 1 . . . 1 2 Average Overweight (x) . | . . . . . . Largest Inventory Capacity 8 | 8 8 8 8 8 5 Average Capacity 7 | 7 8 8 8 7 5 Most Carried 8 | 5 8 8 8 8 5 Average Carried 6 | 3 5 7 6 7 3 Final Capacity 8 | 8 8 8 8 5 5 Final Carried 8 | . 8 7 8 5 3 Class Distribution -------------------- 63% | Mutant 20% | Infiltrator-Mutant 9% | Infiltrator-Skirmisher 7% | Skirmisher Dominant Class ---------------- Mutant | -10/Materials Mutant | -9/Materials Infiltrator-Skirmisher | -8/Materials Mutant | -8/Storage Mutant | -8/Garrison Resources | -11 -10 -9 -8 -8 -8 ----------- Run | Yrd Mat Mat Mat Sto Gar Matter Collected 1343 | 210 258 222 393 170 90 Remotely . | . . . . . . Salvage Created 1837 | . 369 405 540 323 200 Parts 124 | . 35 34 30 20 5 Haulers Intercepted 2 | . 1 1 . . . Recyclers Shooed 1 | . . . 1 . . Parts Field Recycled . | . . . . . . Retrieved Matter . | . . . . . . Parts Self-Destructed . | . . . . . . Prevented . | . . . . . . Kills | -11 -10 -9 -8 -8 -8 ------- Run | Yrd Mat Mat Mat Sto Gar Combat Hostiles Destroyed 50 | . 13 11 14 6 6 Guns 22 | . 8 3 10 . 1 Cannons 25 | . 5 8 4 6 2 AOE 3 | . . . . . 3 Classes Destroyed 8 | . 6 1 . . 1 Worker 1 | . 1 . . . . Tunneler 1 | . 1 . . . . Hauler 2 | . 1 1 . . . Watcher 5 | . 3 2 . . . Swarmer 24 | . 12 7 5 . . Cutter 3 | . . . . . 3 Grunt 16 | . 1 2 7 3 3 Sentry 7 | . . 2 2 3 . Best Kill Streak 5 | . 5 5 4 2 3 Combat Bots Only 4 | . 3 4 4 2 3 Max Kills in Single Turn 2 | . 2 1 1 1 2 Gunslinging . | . . . . . . Exploded 2 | . . . . . 2 Melee . | . . . . . . Uniques/NPCs Destroyed . | . . . . . . Combat | -11 -10 -9 -8 -8 -8 -------- Run | Yrd Mat Mat Mat Sto Gar Hostile Shots Fired 467 | . 100 83 115 71 98 Missed 136 | . 21 24 39 20 32 Hits 331 | . 79 59 76 51 66 Melee 1 | . . . . . 1 Projectile 330 | . 79 59 76 51 65 AOE 3 | . . . . . 3 Critical Strikes 10 | . . 1 3 4 2 Damage Taken 3883 | . 644 526 830 806 1077 Core 727 | . 114 58 149 34 372 Absorbed by Shields 290 | . . 94 136 . 60 Core Remaining (%) 79 | 100 54 85 . . . Volleys Fired 229 | . 74 40 54 34 27 Largest 3 | . 2 2 3 2 2 Hottest 116 | . 80 83 106 116 116 Shots Fired 420 | . 148 81 115 40 36 Gun 275 | . 118 46 88 6 17 Cannon 141 | . 30 35 27 34 15 Launcher 4 | . . . . . 4 Special . | . . . . . . Kinetic 257 | . 118 46 88 5 . Thermal 159 | . 30 35 27 35 32 Explosive 4 | . . . . . 4 Electromagnetic . | . . . . . . Robot Hit Streak 11 | . 10 11 9 6 5 Robot Miss Streak 6 | . 5 4 6 4 5 Penetration Max . | . . . . . . Secondary Targets 5 | . 2 . 3 . . Max Gunslinging Chain 1 | . 1 . 1 . . Shots Hit Robots 225 | . 80 46 59 24 16 Core Hits 98 | . 30 19 23 11 15 Critical Kills . | . . . . . . Critical Parts Destroyed . | . . . . . . Critical Strikes . | . . . . . . Melee Attacks . | . . . . . . Impact . | . . . . . . Slashing . | . . . . . . Piercing . | . . . . . . Sneak Attacks . | . . . . . . Combat Hostiles . | . . . . . . Follow-up Attacks . | . . . . . . Damage Inflicted 4050 | . 901 783 1044 541 781 Guns 1889 | . 606 379 721 82 101 Cannons 1738 | . 295 404 323 459 257 Explosions 423 | . . . . . 423 Melee . | . . . . . . Ramming . | . . . . . . Kinetic 1774 | . 606 379 721 68 . Thermal 1853 | . 295 404 323 473 358 Explosive 423 | . . . . . 423 Electromagnetic . | . . . . . . Impact . | . . . . . . Slashing . | . . . . . . Piercing . | . . . . . . Highest Corruption 3 | . . 3 . 1 1 Average Corruption 2 | . . 2 . 1 1 Corruption Purged . | . . . . . . Corruption Blocked . | . . . . . . Effects 17 | . . 13 . . 4 Message Errors 3 | . . 3 . . . Matter Fused 6 | . . 5 . . 1 Heat Flow Errors 1 | . . 1 . . . Energy Discharges 3 | . . 2 . . 1 Data Loss (major) 1 | . . . . . 1 Misfires 1 | . . 1 . . . Alerts 2 | . . 1 . . 1 Overload Shots . | . . . . . . Overflow Damage 100 | . 40 . 19 . 41 Projectiles 59 | . 40 . 19 . . Explosions 41 | . . . . . 41 Melee . | . . . . . . Knockbacks . | . . . . . . Impact . | . . . . . . Kinetic . | . . . . . . Secondary . | . . . . . . Self-Inflicted Damage 151 | . . . . . 151 Shots 3 | . . . . . 3 Rammed . | . . . . . . Targets Rammed . | . . . . . . Kicked . | . . . . . . Crushed . | . . . . . . Highest Temperature 348 | . 320 252 127 348 282 Average Temperature 81 | . 119 41 57 105 83 Received Heat Transfer 1334 | . 36 133 274 468 423 Effects 7 | . 2 . . 1 4 Interference 6 | . 2 . . . 4 Damage (minor) 1 | . . . . 1 . Siege Activations . | . . . . . . Martial Activations . | . . . . . . Shielding Activations . | . . . . . . Robots Disrupted . | . . . . . . Combat Hostiles . | . . . . . . Robots Corrupted . | . . . . . . Combat Hostiles . | . . . . . . Parts Fried . | . . . . . . Impact Corruptions . | . . . . . . Robots Melted . | . . . . . . Combat Hostiles . | . . . . . . Parts Melted 4 | . . 2 1 1 . Heat Transferred 3431 | . 629 851 518 777 656 Parts Sabotaged . | . . . . . . Parts Stolen . | . . . . . . Parts Stripped . | . . . . . . Power Chain Reactions . | . . . . . . Alert | -11 -10 -9 -8 -8 -8 ------- Run | Yrd Mat Mat Mat Sto Gar Maximum Alert Level . | . . . . . . Low Security (%) 100 | 100 100 100 100 100 100 Level 1 . | . . . . . . Level 2 . | . . . . . . Level 3 . | . . . . . . Level 4 . | . . . . . . Level 5 . | . . . . . . High Security . | . . . . . . Max Security . | . . . . . . Peak Influence 119 | . 88 108 110 76 119 Initial 24 | . . . 24 8 23 Average 26 | . 20 42 20 22 40 Influence Increases 1498 | . 351 373 340 262 172 Destroy 0b10 Robot/C 1000 | . 260 220 280 120 120 Destroy 0b10 Robot/NC 45 | . 30 15 . . . Destroy Leader 194 | . 48 46 50 40 10 Allied During Kill 1 | . . . . 1 . Successful Hack 27 | . 13 2 5 7 . Disable Machine 60 | . . 30 . 30 . Destroy Structure 36 | . . . 5 4 27 Lose Combat Pursuer 135 | . . 60 . 60 15 Influence Decreases 1406 | . 351 314 378 247 116 Entered New Map 61 | . . . 35 13 13 Time Decay 1125 | . 351 314 303 157 . Lost Part 147 | . . . 40 17 90 Lost Ally 73 | . . . . 60 13 Squads Dispatched 6 | . . . 5 1 . Investigation 1 | . . . 1 . . Extermination . | . . . . . . Reinforcement 2 | . . . 1 1 . Assault . | . . . . . . Garrison 3 | . . . 3 . . Intercept . | . . . . . . Searches Triggered . | . . . . . . Construction Impeded . | . . . . . . Haulers Reinforced . | . . . . . . Active Scanning Responses . | . . . . . . Cargo Convoy Interrupts . | . . . . . . Stealth | -11 -10 -9 -8 -8 -8 --------- Run | Yrd Mat Mat Mat Sto Gar Distress Signals 7 | . . 2 3 2 . Communications Jammed . | . . . . . . Distress Signals . | . . . . . . Times Spotted 87 | . 21 20 22 10 14 Peak Tracking Total 8 | . 4 4 5 4 8 Tactical Retreats 10 | . . 2 3 4 1 Traps | -11 -10 -9 -8 -8 -8 ------- Run | Yrd Mat Mat Mat Sto Gar Traps Triggered 5 | . . 2 1 1 1 Indirectly . | . . . . . . Trap Hack Attempts . | . . . . . . Triggered . | . . . . . . Disarmed . | . . . . . . Reprogrammed . | . . . . . . Reused . | . . . . . . Traps Extracted . | . . . . . . Installed . | . . . . . . Triggered . | . . . . . . Machines | -11 -10 -9 -8 -8 -8 ---------- Run | Yrd Mat Mat Mat Sto Gar Machines Disabled 4 | . . 2 . 2 . Max in Single Turn 1 | . . 1 . 1 . Garrison Access 1 | . . . 1 . . Machines Repaired . | . . . . . . Machines Dismantled . | . . . . . . Machines Sabotaged . | . . . . . . Overloaded Fab Kills . | . . . . . . Hacking | -11 -10 -9 -8 -8 -8 --------- Run | Yrd Mat Mat Mat Sto Gar Machines Accessed 15 | . 6 1 5 3 . Terminals 13 | . 6 1 4 2 . Fabricators . | . . . . . . Repair Stations . | . . . . . . Recycling Units . | . . . . . . Scanalyzers . | . . . . . . Garrison Access 2 | . . . 1 1 . Total Hacks 30 | . 12 4 11 3 . Successful 15 | . 4 3 5 3 . Failed 15 | . 8 1 6 . . Catastrophic 1 | . 1 . . . . Database Lockouts . | . . . . . . Manual 4 | . 2 . 2 . . Terminals 26 | . 12 4 8 2 . Fabricators . | . . . . . . Repair Stations . | . . . . . . Recycling Units . | . . . . . . Scanalyzers . | . . . . . . Garrison Access 4 | . . . 3 1 . Terminal Hacks 12 | . 4 3 3 2 . Record 3 | . . 2 1 . . Open Door 2 | . . . . 2 . Emergency Access Points 1 | . 1 . . . . Locate Traps 2 | . 2 . . . . Hauler Manifests 1 | . . . 1 . . Zone Layout 3 | . 1 1 1 . . Fabricator Hacks . | . . . . . . Repair Station Hacks . | . . . . . . Recycling Unit Hacks . | . . . . . . Scanalyzer . | . . . . . . Garrison Access Hacks 3 | . . . 2 1 . Unlock Access 2 | . . . 1 1 . Seal Access 1 | . . . 1 . . Unauthorized Hacks . | . . . . . . Terminals . | . . . . . . Fabricators . | . . . . . . Repair Stations . | . . . . . . Recycling Units . | . . . . . . Scanalyzers . | . . . . . . Garrison Access . | . . . . . . Data Cores Recovered . | . . . . . . Used . | . . . . . . Hacking Detections 11 | . 4 1 4 2 . Full Trace Events . | . . . . . . Feedback Events . | . . . . . . Feedback Blocked . | . . . . . . Robot Schematics Acquired . | . . . . . . Robots Built . | . . . . . . Authchips . | . . . . . . Time . | . . . . . . Total Robot Build Rating . | . . . . . . Part Schematics Acquired . | . . . . . . Parts Built . | . . . . . . Authchips . | . . . . . . Time . | . . . . . . Total Part Build Rating . | . . . . . . Parts Repaired . | . . . . . . Time . | . . . . . . Parts Recycled . | . . . . . . Recycled Matter . | . . . . . . Retrieved Matter . | . . . . . . Retrieved Components . | . . . . . . Parts Scanalyzed . | . . . . . . Part Schematics Acquired . | . . . . . . Parts Damaged . | . . . . . . Bothacking | -11 -10 -9 -8 -8 -8 ------------ Run | Yrd Mat Mat Mat Sto Gar Used RIF Installer . | . . . . . . Robots Hacked . | . . . . . . Non-combat . | . . . . . . Combat . | . . . . . . Robot Hacks Applied . | . . . . . . Relay Couplers Released . | . . . . . . Fabnet Peak Effective % . | . . . . . . Robots Rewired . | . . . . . . Allies Hacked . | . . . . . . Hacks Repelled . | . . . . . . Allies | -11 -10 -9 -8 -8 -8 -------- Run | Yrd Mat Mat Mat Sto Gar Total Allies . | . . . . . . Largest Group . | . . . . . . Highest-Rated Group . | . . . . . . Highest-Rated Ally . | . . . . . . Total Orders . | . . . . . . Ally Attacks . | . . . . . . Total Damage . | . . . . . . Kills . | . . . . . . Allies Corrupted . | . . . . . . Allies Melted . | . . . . . . Intel | -11 -10 -9 -8 -8 -8 ------- Run | Yrd Mat Mat Mat Sto Gar Active Infowar (turns) 3580 | . 915 979 1389 246 51 Sensors 160 | . . . . 136 24 Structural 3575 | . 915 979 1389 241 51 Traps 1293 | . . . 1020 241 32 Seismic 2274 | . . 979 1295 . . ECM 1042 | . . 26 742 223 51 Robot Analysis Total . | . . . . . . Derelict Logs Recovered . | . . . . . . Drone Launches 36 | . . . . 32 4 Drone Recoveries 20 | . . . . 20 . Exploration | -11 -10 -9 -8 -8 -8 ------------- Run | Yrd Mat Mat Mat Sto Gar Turns Passed 5042 | 44 1884 979 1389 482 264 Spaces Moved 2316 | 41 1006 360 579 200 130 Core 44 | 40 . . . . 4 Treads 2179 | 1 1006 360 579 200 33 Legs 93 | . . . . . 93 Wheels . | . . . . . . Hover . | . . . . . . Flight . | . . . . . . Fastest Speed 50 | 50 160 160 160 160 100 Average Speed 157 | 81 160 160 160 161 129 Slowest Speed 240 | 160 160 160 160 240 160 Overloaded Moves . | . . . . . . Propulsion Burnouts . | . . . . . . Robots Hopped . | . . . . . . Potential Cave-ins . | . . . . . . Cave-ins Triggered . | . . . . . . Exploration Rate (%) 42 | 4 99 31 76 28 17 Regions Visited 5 Branch Regions 1 Pre-discovered Areas . | . . . . . . Known Exits Taken 1 | . . . . 1 . Unknown Exits Taken 4 | 1 1 1 1 . . Scrap Searched . | . . . . . . Spaces Dug . | . . . . . . Terrain Destroyed 43 | . . . 4 3 36 Melee . | . . . . . . Projectile 7 | . . . 4 3 . AOE 36 | . . . . . 36 Terrain Rammed . | . . . . . . Walls Destroyed . | . . . . . . Machines Disabled . | . . . . . . Actions | -11 -10 -9 -8 -8 -8 --------- Run | Yrd Mat Mat Mat Sto Gar Total 3327 | 51 1157 686 932 313 188 Wait 644 | . 42 258 278 47 19 Move 2312 | 40 1005 359 578 200 130 Hop . | . . . . . . Pick Up 45 | 5 18 8 9 4 1 Fast Attach 5 | 1 . . . 3 1 Attach 16 | 5 1 2 5 . 3 Detach . | . . . . . . Swap 40 | . 8 9 4 18 1 Drop 30 | . 9 10 4 7 . Fire 229 | . 74 40 54 34 27 Melee . | . . . . . . Ram . | . . . . . . Kick . | . . . . . . Crush . | . . . . . . Escape Stasis 6 | . . . . . 6 Rewire . | . . . . . . Trap . | . . . . . . Miscellaneous . | . . . . . . Route ------- -11/Scrapyard -10/Materials (discovered 6 exits: *Mat x3 / [*Min x2] / [*Sub]) -9/Materials (discovered 2 exits: *Mat x2) -8/Materials (discovered 2 exits: [*Fac] / *Sto) -8/Storage -8/Garrison History --------- Turn | Location | Event 5 | -11/Scrapyard | Discovered new exit (range 15) 45 | -11/Scrapyard | Entered Materials 293 | -10/Materials | Discovered new exit (range 11) 312 | -10/Materials | Build established: Mutant 790 | -10/Materials | Discovered new exit (range 16) 868 | -10/Materials | Discovered new exit (range 7) 962 | -10/Materials | Discovered new exit (range 7) 1150 | -10/Materials | Discovered new exit (range 12) 1618 | -10/Materials | Discovered new exit (range 16) 1929 | -10/Materials | Entered another Materials area 1929 | -9/Materials | Evolved 2 slots: Utility x2 2254 | -9/Materials | Build established: Infiltrator-Mutant 2442 | -9/Materials | Discovered new exit (range 6) 2675 | -9/Materials | Build established: Mutant 2869 | -9/Materials | Discovered new exit (range 6) 2908 | -9/Materials | Entered another Materials area 2908 | -8/Materials | Evolved 2 slots: Utility x1, Weapon x1 3369 | -8/Materials | Met 7R-MNS 3506 | -8/Materials | Build established: Skirmisher 3533 | -8/Materials | Garrison activated, responded to threat 3708 | -8/Materials | Discovered new exit (range 14) 3849 | -8/Materials | Build established: Infiltrator-Skirmisher 4186 | -8/Materials | Identified exit to Garrison 4281 | -8/Materials | Discovered new exit (range 5) 4297 | -8/Materials | Entered Storage 4440 | -8/Storage | Lost 8 allies 4712 | -8/Storage | Lost 4 allies 4779 | -8/Storage | Identified exit to Garrison 4779 | -8/Storage | Entered Garrison 4801 | -8/Garrison | Triggered checkpoint 4860 | -8/Garrison | Core integrity fell below 50% 4898 | -8/Garrison | Lost 3 allies 4926 | -8/Garrison | Lost 8 parts (1p2n4u1w) 5029 | -8/Garrison | Triggered checkpoint 5037 | -8/Garrison | Core integrity fell below 20% 5043 | -8/Garrison | Destroyed by S-10 Pest with Light Assault Rifle Last Messages --------------- The unstable cave ceiling collapses. Aluminum Leg destroyed. Triggered Stasis Trap. A bubble of rippling energy engulfs the area. Field strength at 94. C-30 ARC bursts open, deploying its payload. G-50 Soldier unfolds itself. G-47 Trooper unfolds itself. ECM Suite destroyed. Destroyed Imp. Heat Sink. Missile Launcher destroyed. Field strength at 68. Field strength at 54. Field strength at 44. Field strength at 30. Field strength at 15. S-10 Pest destroyed. Garrison Door activated. Field strength at 4. Stasis field depleted. Map ----- +----------------------------------------------------+ | ?????????????????????????????????????????????????? | | ?????????????????????????????????????????????????? | | ?????????????????????????????????????????????????? | | ?????????????????????????????????????????????????? | | ?????????????????????????????????????????????????? | | ?????????????????????????????????????????????????? | | ?????????????????????????????????????????????????? | | ?????????????????????????????????????????????????? | | ?????????????????????????????????????????????????? | | ?????????????????????????????????????????????????? | | ?????????????????????????????????????????????????? | | ?????????????????????????????????????????????????? | | ?????????????????????????????????????????????????? | | ?????????????????????????????????????????????????? | | ?????????????? ##"??"######??????????????????????? | | ?????????????? ?? ??????????????????????? | | ?????????????? ?? ??????????????????????? | | ??????????????? ? ??????????????????????? | | ???????????? ???# # ??????????????????????? | | ????????????? ## # g ###????????????????????? | | ??????????????? % ?????????????????????? | | ????????????????? g g C?????????????????????? | | ??????????????????? ??????????????????????? | | ????????????????????? ??????????????????????? | | ??????????????????????# #??????????????????????? | | ????????????????# ## @###########????????????? | | ???????????+ [s= #????????????? | | ???????????+ s s #????????????? | | ???????????# ######## #????????????? | | ???????????# ## ######??????# #????????????? | | ????????????????# ?????????????# #????????????? | | ????????????????###??????????????# #????????????? | | ?????????????????????????????????# #????????????? | | ?????????????????????????????????# #????????????? | | ?????????????????????????????????# #????????????? | | ?????????????????????????????????# #????????????? | | ?????????????????????????????????# #????????????? | | ???????????????????????????????### #????????????? | | ???????????????????????????????# # ###??????????? | | ???????????????????????????????# # #?#####????? | | ???????????????????????????????# # ### ##????? | | ???????????????????????????????# [ ### ####?? | | ???????????????????????????????# #?? | | ???????????????????????????????# #### ## #?? | | ???????????????????????????????# ##??## #####? | | ???????????????????????????????### #????#### #? | | ?????????????????????????????????# ######### %## | | ?????????????????????????????????# | | ?????????????????????????????????# % | | ?????????????????????????????????################# | +----------------------------------------------------+ Best States ------------- Heat Dissipation 45 Energy Generation 14 Energy Capacity 280 Matter Stores 300 Matter Capacity 300 Sight Range 16 Robot Scan Range 15 Terrain Scan Density 10 ECM Strength 1 Evasion (%) 55 Recoil Reduction 2 Item Schematics ----------------- None Robot Schematics ------------------ None Fabricated ------------ Nothing Repaired ---------- Nothing Alien Tech Used ----------------- None Achievements -------------- Release The Drones! Challenges ------------ None Game ------ Seed InertialScrapKatana Manual? 0 Play Time 00:39:53 Cumulative 20.4 hours Start 2025.09.07 @ 16:24:18 End 2025.09.07 @ 17:15:31 Sessions 4 Manual Loads 0 Difficulty Rogue Special Mode None Game No. 45 Rogue 45 Adventurer 0 Explorer 0 Win Type - Total 0 Types 0/0/0/0/0/0/0/0/0/0 Lore% 9 Gallery% 17 Achievement% 17 Wizard Run 0 Options --------- Layout 1 ASCII 0 Keyboard 0 Movement Mouse Keybinds 0 Fullscreen 2 Font 24/Smallcaps Map View 50x35 Zoom Use 0% Tactical HUD 0 Map Filters NONE Filters NONE Steam 1 RUN: d3433c88-5570-444d-ae6b-d953918e492c